fUST/lending_fUST_20250717
["ID","MTS","AMOUNT","RATE_DAILY","PERIOD"]
[372563899,1752684651966,-460.0,0.00020273,2]
[372563900,1752684651976,-460.0,0.00020273,2]
[372563901,1752684651985,-460.0,0.00020273,2]
[372563902,1752684651994,-460.0,0.00020273,2]
[372563903,1752684652003,-460.0,0.00020273,2]
[372563904,1752684652013,-485.46,0.00020273,2]
[372563905,1752684652026,-460.0,0.00020273,2]
[372563906,1752684652036,-460.0,0.00020273,2]
[372563907,1752684652045,-460.0,0.00020273,2]
[372563908,1752684652055,-460.0,0.00020273,2]
[372563909,1752684652067,-460.0,0.00020273,2]
[372563910,1752684652076,-460.0,0.00020273,2]
[372563911,1752684652086,-460.0,0.00020273,2]
[372563912,1752684652097,-460.0,0.00020273,2]
[372563913,1752684652107,-460.0,0.00020273,2]
[372563914,1752684652117,-460.0,0.00020273,2]
[372563915,1752684652126,-531.44,0.00020273,2]
[372563916,1752684652137,-666.65,0.00020273,2]
[372563917,1752684652146,-1166.82,0.00020273,2]
[372563918,1752684652156,-460.0,0.00020273,2]
[372563919,1752684652166,-460.0,0.00020273,2]
[372563920,1752684652176,-460.0,0.00020273,2]
[372563921,1752684652186,-528.03,0.00020273,2]
[372563922,1752684652196,-460.0,0.00020273,2]
[372563923,1752684652206,-508.4,0.00020273,2]
[372563924,1752684652215,-460.0,0.00020273,2]
[372563925,1752684652225,-460.0,0.00020273,2]
[372563926,1752684652235,-762.77,0.00020273,2]
[372563927,1752684652244,-460.0,0.00020273,2]
[372563928,1752684652254,-460.0,0.00020273,2]
[372563929,1752684652264,-460.0,0.00020273,2]
[372563930,1752684652273,-460.0,0.00020273,2]
[372563931,1752684652283,-460.0,0.00020273,2]
[372563932,1752684652292,-460.0,0.00020273,2]
[372563933,1752684652303,-460.0,0.00020273,2]
[372563934,1752684652312,-460.0,0.00020273,2]
[372563935,1752684652325,-460.0,0.00020273,2]
[372563936,1752684652335,-460.0,0.00020273,2]
[372563937,1752684652344,-460.0,0.00020273,2]
[372563938,1752684652354,-460.0,0.00020273,2]
[372563939,1752684652363,-1805.05,0.00020273,2]
[372563940,1752684652373,-460.0,0.00020273,2]
[372563941,1752684652383,-460.0,0.00020273,2]
[372563942,1752684652393,-657.3,0.00020273,2]
[372563943,1752684652403,-463.32146511,0.00020273,2]
[372563944,1752684652413,-460.0,0.00020273,2]
[372563945,1752684652422,-460.0,0.00020273,2]
[372563946,1752684652432,-460.0,0.00020273,2]
[372563947,1752684652442,-460.0,0.00020273,2]
[372563948,1752684652451,-5636.36,0.00020273,2]
[372563949,1752684652460,-460.0,0.00020273,2]
[372563950,1752684652470,-460.0,0.00020273,2]
[372563951,1752684652479,-461.01845818,0.00020273,2]
[372563952,1752684652488,-460.0,0.00020273,2]
[372563953,1752684652498,-670.84,0.00020273,2]
[372563954,1752684652507,-460.0,0.00020273,2]
[372563955,1752684652517,-460.0,0.00020273,2]
[372563956,1752684652526,-460.0,0.00020273,2]
[372563957,1752684652535,-1525.98,0.00020273,2]
[372563958,1752684652545,-460.0,0.00020273,2]
[372563959,1752684652555,-658.1,0.00020273,2]
[372563960,1752684652568,-498.91,0.00020273,2]
[372563961,1752684652577,-1192.4,0.00020273,2]
[372563962,1752684652587,-1701.11,0.00020273,2]
[372563963,1752684652596,-460.0,0.00020273,2]
[372563964,1752684652606,-460.0,0.00020273,2]
[372563965,1752684652615,-460.0,0.00020273,2]
[372563966,1752684652626,-1851.96,0.00020273,2]
[372563967,1752684652635,-460.0,0.00020273,2]
[372563968,1752684652644,-984.9,0.00020273,2]
[372563969,1752684652654,-460.0,0.00020273,2]
[372563970,1752684652663,-460.0,0.00020273,2]
[372563971,1752684652673,-460.0,0.00020273,2]
[372563972,1752684652682,-460.0,0.00020273,2]
[372563973,1752684652692,-460.0,0.00020273,2]
[372563974,1752684652702,-460.0,0.00020273,2]
[372563975,1752684652712,-460.0,0.00020273,2]
[372563976,1752684652722,-858.51,0.00020273,2]
[372563977,1752684652732,-460.0,0.00020273,2]
[372563978,1752684652741,-460.0,0.00020273,2]
[372563979,1752684652751,-460.0,0.00020273,2]
[372563980,1752684652760,-460.0,0.00020273,2]
[372563981,1752684652769,-528.72,0.00020273,2]
[372563982,1752684652779,-5785.84,0.00020273,2]
[372563983,1752684652788,-460.0,0.00020273,2]
[372563984,1752684652798,-460.0,0.00020273,2]
[372563985,1752684652808,-460.0,0.00020273,2]
[372563986,1752684652817,-539.39,0.00020273,2]
[372563987,1752684652827,-460.0,0.00020273,2]
[372563988,1752684652836,-460.0,0.00020273,2]
[372563989,1752684652845,-460.0,0.00020273,2]
[372563990,1752684652855,-460.0,0.00020273,2]
[372563991,1752684652865,-460.0,0.00020273,2]
[372563992,1752684652875,-460.0,0.00020273,2]
[372563993,1752684652884,-460.0,0.00020273,2]
[372563994,1752684652894,-460.0,0.00020273,2]
[372563995,1752684652903,-460.0,0.00020273,2]
[372563996,1752684652913,-2344.98,0.00020273,2]
[372563997,1752684652922,-574.63,0.00020273,2]
[372563998,1752684652932,-460.0,0.00020273,2]
[372563999,1752684652941,-460.0,0.00020273,2]
[372564000,1752684652950,-2567.27,0.00020273,2]
[372564001,1752684652960,-460.0,0.00020273,2]
[372564002,1752684652969,-460.0,0.00020273,2]
[372564003,1752684652979,-460.0,0.00020273,2]
[372564004,1752684652989,-460.0,0.00020273,2]
[372564005,1752684652998,-1889.16,0.00020273,2]
[372564006,1752684653008,-460.0,0.00020273,2]
[372564007,1752684653018,-460.0,0.00020273,2]
[372564008,1752684653030,-5149.09,0.00020273,2]
[372564009,1752684653040,-460.0,0.00020273,2]
[372564010,1752684653050,-929.86,0.00020273,2]
[372564011,1752684653060,-460.0,0.00020273,2]
[372564012,1752684653071,-460.0,0.00020273,2]
[372564013,1752684653081,-460.0,0.00020273,2]
[372564014,1752684653090,-460.0,0.00020273,2]
[372564015,1752684653099,-460.0,0.00020273,2]
[372564016,1752684653110,-1451.09,0.00020273,2]
[372564017,1752684653120,-460.0,0.00020273,2]
[372564018,1752684653129,-461.6,0.00020273,2]
[372564019,1752684653138,-460.0,0.00020273,2]
[372564020,1752684653147,-460.0,0.00020273,2]
[372564021,1752684653157,-460.0,0.00020273,2]
[372564022,1752684653167,-586.93,0.00020273,2]
[372564023,1752684653176,-2614.04,0.00020273,2]
[372564024,1752684653186,-460.0,0.00020273,2]
[372564025,1752684653196,-460.0,0.00020273,2]
[372564026,1752684653205,-1368.28,0.00020273,2]
[372564027,1752684653215,-460.0,0.00020273,2]
[372564028,1752684653225,-501.84426693,0.00020321,2]
[372564029,1752684653234,-773.74,0.00020338,3]
[372564030,1752684653244,-386.86,0.00020338,3]
[372564031,1752684653253,-500.0,0.00020408,2]
[372564032,1752684653262,-500.0,0.00020494,2]
[372564033,1752684653272,-500.0,0.00020494,2]
[372564034,1752684653282,-500.0,0.00020494,2]
[372564035,1752684653291,-500.0,0.00020494,2]
[372564036,1752684653301,-500.0,0.00020494,2]
[372564037,1752684653310,-500.0,0.00020494,2]
[372564038,1752684653321,-436.46501767,0.00020494,2]
[372564039,1752684653331,-500.0,0.00020494,2]
[372564040,1752684653341,-500.34172643,0.00020494,2]
[372564041,1752684653351,-500.0,0.00020494,2]
[372564042,1752684653360,-629.84899964,0.00020494,2]
[372564043,1752684653369,-500.0,0.00020494,2]
[372564044,1752684653379,-500.0,0.00020494,2]
[372564045,1752684653389,-500.0,0.00020494,2]
[372564046,1752684653398,-440.22732466,0.00020494,2]
[372564047,1752684653407,-500.0,0.00020494,2]
[372564048,1752684653416,-500.0,0.00020494,2]
[372564049,1752684653426,-151.0,0.000205,3]
[372564050,1752684653435,-402.02594623,0.00020521,3]
[372564051,1752684653445,-160.0,0.00020521,3]
[372564052,1752684653454,-460.0,0.00020547,2]
[372564053,1752684653464,-460.0,0.00020547,2]
[372564054,1752684653473,-460.0,0.00020547,2]
[372564055,1752684653482,-460.0,0.00020547,2]
[372564056,1752684653492,-460.0,0.00020547,2]
[372564057,1752684653501,-460.0,0.00020547,2]
[372564058,1752684653511,-291.35001493,0.00020547,2]
[372564059,1752684653521,-481.57,0.00020547,2]
[372564060,1752684653530,-460.0,0.00020547,2]
[372564061,1752684653540,-460.0,0.00020547,2]
[372564062,1752684653549,-460.0,0.00020547,2]
[372564063,1752684653559,-460.0,0.00020547,2]
[372564064,1752684653569,-696.92,0.00020547,2]
[372564065,1752684653579,-460.0,0.00020547,2]
[372564066,1752684653588,-460.0,0.00020547,2]
[372564067,1752684653598,-460.0,0.00020547,2]
[372564068,1752684653607,-460.0,0.00020547,2]
[372564069,1752684653616,-460.0,0.00020547,2]
[372564070,1752684653625,-460.0,0.00020547,2]
[372564071,1752684653634,-460.0,0.00020547,2]
[372564072,1752684653643,-460.0,0.00020547,2]
[372564073,1752684653652,-460.0,0.00020547,2]
[372564074,1752684653662,-460.0,0.00020547,2]
[372564075,1752684653671,-460.0,0.00020547,2]
[372564076,1752684653680,-460.0,0.00020547,2]
[372564077,1752684653689,-460.0,0.00020547,2]
[372564078,1752684653698,-460.0,0.00020547,2]
[372564079,1752684653707,-460.0,0.00020547,2]
[372564080,1752684653716,-460.0,0.00020547,2]
[372564081,1752684653726,-460.0,0.00020547,2]
[372564082,1752684653735,-246.39179565,0.00020547,2]
[372564083,1752684653744,-460.0,0.00020547,2]
[372564084,1752684653754,-460.0,0.00020547,2]
[372564085,1752684653763,-460.0,0.00020547,2]
[372564086,1752684653772,-460.0,0.00020547,2]
[372564087,1752684653781,-460.0,0.00020547,2]
[372564088,1752684653790,-460.0,0.00020547,2]
[372564089,1752684653800,-460.0,0.00020547,2]
[372564090,1752684653809,-460.0,0.00020547,2]
[372564091,1752684653818,-460.0,0.00020547,2]
[372564092,1752684653828,-460.0,0.00020547,2]
[372564093,1752684653837,-460.0,0.00020547,2]
[372564094,1752684653846,-485.46,0.00020547,2]
[372564095,1752684653856,-460.0,0.00020547,2]
[372564096,1752684653866,-460.0,0.00020547,2]
[372564097,1752684653875,-460.0,0.00020547,2]
[372564098,1752684653885,-460.0,0.00020547,2]
[372564099,1752684653895,-460.0,0.00020547,2]
[372564100,1752684653904,-460.0,0.00020547,2]
[372564101,1752684653914,-460.0,0.00020547,2]
[372564102,1752684653923,-531.44,0.00020547,2]
[372564103,1752684653933,-666.65,0.00020547,2]
[372564104,1752684653943,-1166.82,0.00020547,2]
[372564105,1752684653952,-460.0,0.00020547,2]
[372564106,1752684653961,-460.0,0.00020547,2]
[372564107,1752684653971,-460.0,0.00020547,2]
[372564108,1752684653981,-528.03,0.00020547,2]
[372564109,1752684653990,-460.0,0.00020547,2]
[372564110,1752684654000,-508.4,0.00020547,2]
[372564111,1752684654010,-460.0,0.00020547,2]
[372564112,1752684654021,-460.0,0.00020547,2]
[372564113,1752684654032,-762.77,0.00020547,2]
[372564114,1752684654042,-460.0,0.00020547,2]
[372564115,1752684654051,-460.0,0.00020547,2]
[372564116,1752684654061,-460.0,0.00020547,2]
[372564117,1752684654073,-460.0,0.00020547,2]
[372564118,1752684654083,-460.0,0.00020547,2]
[372564119,1752684654093,-460.0,0.00020547,2]
[372564120,1752684654103,-460.0,0.00020547,2]
[372564121,1752684654115,-460.0,0.00020547,2]
[372564122,1752684654124,-460.0,0.00020547,2]
[372564123,1752684654134,-460.0,0.00020547,2]
[372564124,1752684654143,-460.0,0.00020547,2]
[372564125,1752684654153,-460.0,0.00020547,2]
[372564126,1752684654163,-460.0,0.00020547,2]
[372564127,1752684654173,-1805.05,0.00020547,2]
[372564128,1752684654182,-460.0,0.00020547,2]
[372564129,1752684654191,-460.0,0.00020547,2]
[372564130,1752684654200,-657.3,0.00020547,2]
[372564131,1752684654209,-460.0,0.00020547,2]
[372564132,1752684654219,-460.0,0.00020547,2]
[372564133,1752684654228,-460.0,0.00020547,2]
[372564134,1752684654237,-460.0,0.00020547,2]
[372564135,1752684654246,-5636.36,0.00020547,2]
[372564136,1752684654255,-460.0,0.00020547,2]
[372564137,1752684654265,-460.0,0.00020547,2]
[372564138,1752684654276,-460.0,0.00020547,2]
[372564139,1752684654286,-670.84,0.00020547,2]
[372564140,1752684654295,-460.0,0.00020547,2]
[372564141,1752684654305,-460.0,0.00020547,2]
[372564142,1752684654315,-460.0,0.00020547,2]
[372564143,1752684654326,-1525.98,0.00020547,2]
[372564144,1752684654335,-460.0,0.00020547,2]
[372564145,1752684654346,-658.1,0.00020547,2]
[372564146,1752684654356,-498.91,0.00020547,2]
[372564147,1752684654366,-1192.4,0.00020547,2]
[372564148,1752684654375,-1701.11,0.00020547,2]
[372564149,1752684654385,-460.0,0.00020547,2]
[372564150,1752684654395,-460.0,0.00020547,2]
[372564151,1752684654404,-460.0,0.00020547,2]
[372564152,1752684654413,-1851.96,0.00020547,2]
[372564153,1752684654423,-460.0,0.00020547,2]
[372564154,1752684654432,-984.9,0.00020547,2]
[372564155,1752684654441,-460.0,0.00020547,2]
[372564156,1752684654451,-544.87160322,0.00020547,2]
[372564157,1752684654460,-460.0,0.00020547,2]
[372564158,1752684654470,-460.0,0.00020547,2]
[372564159,1752684654479,-460.0,0.00020547,2]
[372564160,1752684654489,-460.0,0.00020547,2]
[372564161,1752684654498,-460.0,0.00020547,2]
[372564162,1752684654507,-858.51,0.00020547,2]
[372564163,1752684654516,-214.77024301,0.00020547,2]
[372564164,1752684654525,-460.0,0.00020547,2]
[372564165,1752684654534,-528.72,0.00020547,2]
[372564166,1752684654543,-5785.84,0.00020547,2]
[372564167,1752684654552,-460.0,0.00020547,2]
[372564168,1752684654561,-460.0,0.00020547,2]
[372564169,1752684654572,-460.0,0.00020547,2]
[372564170,1752684654581,-460.0,0.00020547,2]
[372564171,1752684654591,-460.0,0.00020547,2]
[372564172,1752684654600,-539.39,0.00020547,2]
[372564173,1752684654610,-460.0,0.00020547,2]
[372564174,1752684654620,-460.0,0.00020547,2]
[372564175,1752684654630,-460.0,0.00020547,2]
[372564176,1752684654640,-460.0,0.00020547,2]
[372564177,1752684654649,-460.0,0.00020547,2]
[372564178,1752684654659,-460.0,0.00020547,2]
[372564179,1752684654668,-460.0,0.00020547,2]
[372564180,1752684654677,-409.28350025,0.00020547,2]
[372564181,1752684654686,-460.0,0.00020547,2]
[372564182,1752684654696,-2344.98,0.00020547,2]
[372564183,1752684654705,-574.63,0.00020547,2]
[372564184,1752684654715,-460.0,0.00020547,2]
[372564185,1752684654725,-460.0,0.00020547,2]
[372564186,1752684654734,-2567.27,0.00020547,2]
[372564187,1752684654744,-460.0,0.00020547,2]
[372564188,1752684654753,-460.0,0.00020547,2]
[372564189,1752684654764,-460.0,0.00020547,2]
[372564190,1752684654774,-1889.16,0.00020547,2]
[372564191,1752684654784,-460.0,0.00020547,2]
[372564192,1752684654793,-460.0,0.00020547,2]
[372564193,1752684654804,-5149.09,0.00020547,2]
[372564194,1752684654814,-460.0,0.00020547,2]
[372564195,1752684654824,-929.86,0.00020547,2]
[372564196,1752684654834,-460.0,0.00020547,2]
[372564197,1752684654844,-460.0,0.00020547,2]
[372564198,1752684654853,-460.0,0.00020547,2]
[372564199,1752684654863,-460.0,0.00020547,2]
[372564200,1752684655003,-460.0,0.00020547,2]
[372564201,1752684655014,-1451.09,0.00020547,2]
[372564202,1752684655025,-460.0,0.00020547,2]
[372564203,1752684655038,-461.6,0.00020547,2]
[372564204,1752684655048,-460.0,0.00020547,2]
[372564205,1752684655058,-460.0,0.00020547,2]
[372564206,1752684655070,-460.0,0.00020547,2]
[372564207,1752684655081,-586.93,0.00020547,2]
[372564208,1752684655091,-2614.04,0.00020547,2]
[372564209,1752684655102,-460.0,0.00020547,2]
[372564210,1752684655111,-460.0,0.00020547,2]
[372564211,1752684655122,-1368.28,0.00020547,2]
[372564212,1752684655131,-460.0,0.00020547,2]
[372564213,1752684655140,-160.0,0.00020563,2]
[372564214,1752684655150,-1062.26293071,0.00020568,2]
[372564215,1752684655159,-270.97440349,0.00020568,2]
[372564216,1752684655169,-214.40824756,0.0002059,3]
[372564217,1752684655179,-151.0,0.000206,4]
[372564218,1752684655189,-420.0,0.00020602,2]
[372564219,1752684655199,-866.0,0.00020684,2]
[372564220,1752684655209,-1680.0,0.00020702,2]
[372564221,1752684655219,-1000.0,0.0002078,2]
[372564222,1752684655229,-558.29399971,0.0002078,2]
[372564223,1752684655238,-518.62527828,0.00020795,2]
[372564224,1752684655247,-1000.0,0.00020795,2]
[372564225,1752684655256,-2000.0,0.00020816,2]
[372564226,1752684655265,-460.0,0.00020821,2]
[372564227,1752684655275,-264.29475295,0.00020821,2]
[372564228,1752684655284,-460.0,0.00020821,2]
[372564229,1752684655294,-460.0,0.00020821,2]
[372564230,1752684655303,-460.0,0.00020821,2]
[372564231,1752684655313,-460.0,0.00020821,2]
[372564232,1752684655325,-481.57,0.00020821,2]
[372564233,1752684655335,-460.0,0.00020821,2]
[372564234,1752684655344,-460.0,0.00020821,2]
[372564235,1752684655353,-460.0,0.00020821,2]
[372564236,1752684655363,-460.0,0.00020821,2]
[372564237,1752684655373,-696.92,0.00020821,2]
[372564238,1752684655382,-460.0,0.00020821,2]
[372564239,1752684655392,-460.0,0.00020821,2]
[372564240,1752684655402,-460.0,0.00020821,2]
[372564241,1752684655411,-460.0,0.00020821,2]
[372564242,1752684655421,-460.0,0.00020821,2]
[372564243,1752684655431,-460.0,0.00020821,2]
[372564244,1752684655440,-460.0,0.00020821,2]
[372564245,1752684655450,-460.0,0.00020821,2]
[372564246,1752684655459,-460.0,0.00020821,2]
[372564247,1752684655469,-460.0,0.00020821,2]
[372564248,1752684655478,-460.0,0.00020821,2]
[372564249,1752684655488,-460.0,0.00020821,2]
[372564250,1752684655497,-460.0,0.00020821,2]
[372564251,1752684655507,-460.0,0.00020821,2]
[372564252,1752684655516,-460.0,0.00020821,2]
[372564253,1752684655526,-460.0,0.00020821,2]
[372564254,1752684655536,-460.0,0.00020821,2]
[372564255,1752684655545,-460.0,0.00020821,2]
[372564256,1752684655555,-460.0,0.00020821,2]
[372564257,1752684655565,-460.0,0.00020821,2]
[372564258,1752684655576,-460.0,0.00020821,2]
[372564259,1752684655585,-460.0,0.00020821,2]
[372564260,1752684655595,-460.0,0.00020821,2]
[372564261,1752684655605,-309.32315248,0.00020821,2]
[372564262,1752684655615,-485.46,0.00020821,2]
[372564263,1752684655624,-208.37713026,0.00020821,2]
[372564264,1752684655633,-460.0,0.00020821,2]
[372564265,1752684655642,-460.0,0.00020821,2]
[372564266,1752684655652,-460.0,0.00020821,2]
[372564267,1752684655661,-460.0,0.00020821,2]
[372564268,1752684655671,-531.44,0.00020821,2]
[372564269,1752684655681,-666.65,0.00020821,2]
[372564270,1752684655690,-1166.82,0.00020821,2]
[372564271,1752684655699,-483.01900064,0.00020821,2]
[372564272,1752684655707,-460.0,0.00020821,2]
[372564273,1752684655716,-460.0,0.00020821,2]
[372564274,1752684655726,-528.03,0.00020821,2]
[372564275,1752684655735,-460.0,0.00020821,2]
[372564276,1752684655744,-508.4,0.00020821,2]
[372564277,1752684655753,-460.0,0.00020821,2]
[372564278,1752684655763,-460.0,0.00020821,2]
[372564279,1752684655772,-762.77,0.00020821,2]
[372564280,1752684655782,-460.0,0.00020821,2]
[372564281,1752684655791,-460.0,0.00020821,2]
[372564282,1752684655799,-460.0,0.00020821,2]
[372564283,1752684655808,-460.0,0.00020821,2]
[372564284,1752684655821,-460.0,0.00020821,2]
[372564285,1752684655830,-460.0,0.00020821,2]
[372564286,1752684655839,-460.0,0.00020821,2]
[372564287,1752684655849,-460.0,0.00020821,2]
[372564288,1752684655859,-460.0,0.00020821,2]
[372564289,1752684655868,-460.0,0.00020821,2]
[372564290,1752684655877,-460.0,0.00020821,2]
[372564291,1752684655887,-460.0,0.00020821,2]
[372564292,1752684655897,-460.0,0.00020821,2]
[372564293,1752684655907,-1805.05,0.00020821,2]
[372564294,1752684655917,-482.6408358,0.00020821,2]
[372564295,1752684655927,-460.0,0.00020821,2]
[372564296,1752684655937,-657.3,0.00020821,2]
[372564297,1752684655946,-460.0,0.00020821,2]
[372564298,1752684655956,-460.0,0.00020821,2]
[372564299,1752684655966,-460.0,0.00020821,2]
[372564300,1752684655975,-460.0,0.00020821,2]
[372564301,1752684655985,-5636.36,0.00020821,2]
[372564302,1752684655994,-314.28,0.00020821,2]
[372564303,1752684656004,-460.0,0.00020821,2]
[372564304,1752684656014,-460.0,0.00020821,2]
[372564305,1752684656023,-670.84,0.00020821,2]
[372564306,1752684656036,-460.0,0.00020821,2]
[372564307,1752684656046,-460.0,0.00020821,2]
[372564308,1752684656065,-460.0,0.00020821,2]
[372564309,1752684656079,-1525.98,0.00020821,2]
[372564310,1752684656089,-460.0,0.00020821,2]
[372564311,1752684656099,-658.1,0.00020821,2]
[372564312,1752684656111,-498.91,0.00020821,2]
[372564313,1752684656122,-1192.4,0.00020821,2]
[372564314,1752684656132,-1701.11,0.00020821,2]
[372564315,1752684656142,-460.0,0.00020821,2]
[372564316,1752684656152,-460.0,0.00020821,2]
[372564317,1752684656162,-460.0,0.00020821,2]
[372564318,1752684656172,-1851.96,0.00020821,2]
[372564319,1752684656182,-460.0,0.00020821,2]
[372564320,1752684656193,-460.0,0.00020821,2]
[372564321,1752684656203,-984.9,0.00020821,2]
[372564322,1752684656213,-460.0,0.00020821,2]
[372564323,1752684656223,-460.0,0.00020821,2]
[372564324,1752684656233,-460.0,0.00020821,2]
[372564325,1752684656243,-460.0,0.00020821,2]
[372564326,1752684656252,-460.0,0.00020821,2]
[372564327,1752684656263,-858.51,0.00020821,2]
[372564328,1752684656273,-460.0,0.00020821,2]
[372564329,1752684656282,-528.72,0.00020821,2]
[372564330,1752684656292,-460.0,0.00020821,2]
[372564331,1752684656302,-5785.84,0.00020821,2]
[372564332,1752684656312,-460.0,0.00020821,2]
[372564333,1752684656321,-152.19956818,0.00020821,2]
[372564334,1752684656331,-460.0,0.00020821,2]
[372564335,1752684656341,-460.0,0.00020821,2]
[372564336,1752684656351,-539.39,0.00020821,2]
[372564337,1752684656361,-460.0,0.00020821,2]
[372564338,1752684656370,-460.0,0.00020821,2]
[372564339,1752684656380,-460.0,0.00020821,2]
[372564340,1752684656390,-460.0,0.00020821,2]
[372564341,1752684656399,-460.0,0.00020821,2]
[372564342,1752684656409,-460.0,0.00020821,2]
[372564343,1752684656419,-460.0,0.00020821,2]
[372564344,1752684656429,-460.0,0.00020821,2]
[372564345,1752684656439,-2344.98,0.00020821,2]
[372564346,1752684656448,-574.63,0.00020821,2]
[372564347,1752684656458,-460.0,0.00020821,2]
[372564348,1752684656468,-460.0,0.00020821,2]
[372564349,1752684656478,-2567.27,0.00020821,2]
[372564350,1752684656488,-460.0,0.00020821,2]
[372564351,1752684656497,-460.0,0.00020821,2]
[372564352,1752684656507,-460.0,0.00020821,2]
[372564353,1752684656516,-1889.16,0.00020821,2]
[372564354,1752684656525,-460.0,0.00020821,2]
[372564355,1752684656536,-341.4126771,0.00020821,2]
[372564356,1752684656545,-5149.09,0.00020821,2]
[372564357,1752684656555,-460.0,0.00020821,2]
[372564358,1752684656565,-929.86,0.00020821,2]
[372564359,1752684656576,-460.0,0.00020821,2]
[372564360,1752684656585,-460.0,0.00020821,2]
[372564361,1752684656596,-460.0,0.00020821,2]
[372564362,1752684656606,-460.0,0.00020821,2]
[372564363,1752684656615,-460.0,0.00020821,2]
[372564364,1752684656625,-1451.09,0.00020821,2]
[372564365,1752684656634,-570.04,0.00020821,2]
[372564366,1752684656644,-461.6,0.00020821,2]
[372564367,1752684656653,-460.0,0.00020821,2]
[372564368,1752684656662,-460.0,0.00020821,2]
[372564369,1752684656673,-460.0,0.00020821,2]
[372564370,1752684656684,-586.93,0.00020821,2]
[372564371,1752684656694,-2614.04,0.00020821,2]
[372564372,1752684656703,-460.0,0.00020821,2]
[372564373,1752684656712,-460.0,0.00020821,2]
[372564374,1752684656722,-1368.28,0.00020821,2]
[372564375,1752684656732,-460.0,0.00020821,2]
[372564376,1752684656741,-423.59612611,0.00020837,2]
[372564377,1752684656750,-500.0,0.00020903,2]
[372564378,1752684656760,-1640.11983989,0.0002093,2]
[372564379,1752684656769,-877.979,0.00021033,2]
[372564380,1752684656779,-500.0,0.00021042,2]
[372564381,1752684656789,-500.0,0.00021042,2]
[372564382,1752684656799,-1000.0,0.00021042,2]
[372564383,1752684656809,-1000.0,0.00021042,2]
[372564384,1752684656818,-1000.0,0.00021042,2]
[372564385,1752684656829,-241.75,0.00021095,2]
[372564386,1752684656839,-361.1,0.00021095,2]
[372564387,1752684656849,-477.85975734,0.00021095,2]
[372564388,1752684656858,-460.0,0.00021095,2]
[372564389,1752684656868,-460.0,0.00021095,2]
[372564390,1752684656877,-481.57,0.00021095,2]
[372564391,1752684656887,-460.0,0.00021095,2]
[372564392,1752684656896,-460.0,0.00021095,2]
[372564393,1752684656906,-460.0,0.00021095,2]
[372564394,1752684656916,-460.0,0.00021095,2]
[372564395,1752684656925,-696.92,0.00021095,2]
[372564396,1752684656935,-460.0,0.00021095,2]
[372564397,1752684656944,-460.0,0.00021095,2]
[372564398,1752684656954,-460.0,0.00021095,2]